[Event "DVM U14 2021"]
[Site "Willingen"]
[Date "2022.08.16"]
[Round "7"]
[White "Ehrig, Leon Chris"]
[Black "Reus, Nicholas"]
[Result "1/2-1/2"]
[ECO "B10"]
[WhiteElo "1832"]
[BlackElo "1663"]
[Annotator "NA RC"]
[PlyCount "69"]
[EventDate "2022.08.12"]
[EventType "team-tourn"]
[EventRounds "7"]
[EventCountry "GER"]
[SourceTitle "playchess.com"]
[Source "ChessBase"]
[SourceQuality "1"]
[TimeControl "40/5400+30:1800+30"]

{[%evp 9,69,-88,-71,-96,-4,-4,4,-11,20,0,0,0,5,5,0,-27,27,-39,16,27,24,-59,-23,32767,32767,32767,32767,32767,32767,32767,32767,32767,0,32767,14,-16,32767,32767,32767,7,0,-19,32767,32767,-8,-25,0,-22,-15,32767,-22,32767,32767,32767,32767,32767,32767,32767,32767,32767,32767,-19]} 1. e4 {[%emt 0:00:04]} c6 {[%emt 0:00:21]} 2. d3 {[%emt 0:00:36]} d5 {[%emt 0:01:06]} 3. Nf3 {[%emt 0:00:33]} dxe4 {[%emt 0:01:18]} 4. Ng5 {[%emt 0:01:48]} Nf6 {[%emt 0:04:41]} 5. Nc3 {[%emt 0:03:19]} Bg4 {[%emt 0:00:52]} 6. Qd2 {[%emt 0:01:02]} e6 {[%emt 0:01:22]} ({Black should try} 6... exd3 $17 7. Bxd3 Nbd7) 7. Ngxe4 {[%emt 0:00:59]} Be7 {[%emt 0:12:57]} 8. Qg5 {[%emt 0:02:05]} Nxe4 {[%emt 0:01:32]} 9. Qxg4 {[%emt 0:01:30]} Nxc3 {[%emt 0:00:17]} 10. bxc3 {[%emt 0:00:45]} Bf6 {[%emt 0:01:47]} 11. Bd2 {[%emt 0:04:46]} O-O {[%emt 0:02:11]} 12. Be2 {[%emt 0:03:02]} Nd7 {[%emt 0:03:52]} 13. Rb1 {[%emt 0:02:59]} Nb6 {[%emt 0:02:28]} (13... Qa5 $142) 14. O-O {[%emt 0:00:45]} Qd7 {[%emt 0:06:55]} 15. f4 {[%emt 0:05:07]} (15. a4 $11) 15... g6 {[%emt 0:09:59]} (15... Na4 $15 {is superior.}) 16. Kh1 {[%emt 0:03:49]} Bg7 {[%emt 0:14:05]} 17. Rf3 {[%emt 0:08:15]} Nd5 {[%emt 0:06:16]} 18. Rb3 {[%emt 0:04:53]} Rfe8 {[%emt 0:01:30]} 19. c4 {[%emt 0:08:33]} f5 {[%emt 0:00:53]} 20. Qh4 {[%emt 0:05:17]} Nb6 {[%emt 0:02:18]} 21. Rh3 {[%emt 0:00:29]} Bh8 {[%emt 0:05:55]} 22. Rb1 {[%emt 0:06:47]} Qe7 {[%emt 0:00:41]} 23. Qh6 {[%emt 0:10:02]} e5 {[%emt 0:01:41] [#]} 24. fxe5 {[%emt 0:00:29]} (24. g4 $1 $16 {[%cal Rg4f5]} fxg4 25. Bxg4) 24... Bxe5 {[%emt 0:02:40]} 25. Bg5 {[%emt 0:02:36]} (25. g4 $142 f4 26. Bf3) 25... Qg7 {[%emt 0:01:08]} 26. Qh4 {[%emt 0:05:32] [#]} Bxh2 $1 {[%emt 0:04:26]} 27. Kxh2 {[%emt 0:00:23]} Rxe2 {[%emt 0:01:48]} 28. Kh1 {[%emt 0:01:09]} (28. Kg1 $5 {[%cal Rc4c5]}) 28... Rae8 {[%emt 0:00:40]} (28... Rxc2 $2 29. Bf6 g5 30. Bxg5 $18) 29. c5 {[%emt 0:00:56]} Nd5 {[%emt 0:00:51]} 30. c4 {[%emt 0:08:59]} Ne3 {[%emt 0:00:30]} 31. Bxe3 {[%emt 0:00:07]} R2xe3 {[%emt 0:00:11]} 32. Rxe3 {[%emt 0:00:05]} Rxe3 {[%emt 0:00:12]} 33. Qd8+ {[%emt 0:00:14]} Qf8 {[%emt 0:03:59]} 34. Qxf8+ {[%emt 0:00:08]} Kxf8 {[%emt 0:02:19]} 35. Rxb7 $11 {[%emt 0:01:48]} 1/2-1/2

[Event "DVM U14 2021"]
[Site "Willingen"]
[Date "2022.08.16"]
[Round "7"]
[White "Prinzen, Siri Marleen"]
[Black "Schoen, Florian"]
[Result "1/2-1/2"]
[ECO "D00"]
[WhiteElo "1801"]
[BlackElo "1688"]
[Annotator "NA RC"]
[PlyCount "109"]
[EventDate "2022.08.12"]
[EventType "team-tourn"]
[EventRounds "7"]
[EventCountry "GER"]
[SourceTitle "playchess.com"]
[Source "ChessBase"]
[SourceQuality "1"]
[TimeControl "40/5400+30:1800+30"]

1. d4 {[%emt 0:00:01]} Nf6 {[%emt 0:01:06]} 2. Bf4 {[%emt 0:00:08]} d5 {[%emt 0:00:59]} 3. e3 {[%emt 0:00:06]} c5 {[%emt 0:01:10]} 4. Nc3 {[%emt 0:04:23]} Nc6 {[%emt 0:01:32]} 5. Nb5 {[%emt 0:00:45]} e5 {[%emt 0:13:57]} 6. dxe5 {[%emt 0:01:56]} Ng4 $2 {[%emt 0:00:54] [#]} (6... a6 $16) 7. e6 $1 {[%emt 0:05:30]} Nge5 {[%emt 0:00:28]} (7... Qa5+ $2 8. c3 Bxe6 9. Nc7+ Kd7 10. Nxe6 fxe6 11. Qxg4 $18) 8. exf7+ {[%emt 0:03:39]} Kxf7 {[%emt 0:00:22]} 9. Nf3 {[%emt 0:04:14]} ({Weaker is} 9. Bxe5 Nxe5 10. Qh5+ Kf6 $18) 9... Ng6 {[%emt 0:05:59]} 10. Bg3 {[%emt 0:06:45]} Be6 {[%emt 0:00:54]} 11. Nc7 {[%emt 0:03:40]} Rc8 {[%emt 0:00:33]} 12. Nxe6 {[%emt 0:00:41]} Kxe6 {[%emt 0:00:04]} 13. Bd3 {[%emt 0:03:00]} Kf7 {[%emt 0:21:31]} 14. Bf5 {[%emt 0:02:55]} Ra8 {[%emt 0:01:33]} 15. h4 {[%emt 0:05:08]} Be7 {[%emt 0:03:45]} 16. h5 {[%emt 0:06:55]} Nf8 {[%emt 0:00:26]} 17. c3 {[%emt 0:03:31]} Bf6 {[%emt 0:01:20]} 18. Bh4 {[%emt 0:06:40]} Ne7 {[%emt 0:03:54]} 19. Bxf6 {[%emt 0:03:20]} gxf6 {[%emt 0:00:25]} 20. Bh3 {[%emt 0:01:48]} Qb6 {[%emt 0:02:30]} 21. Qb3 {[%emt 0:02:47]} Qxb3 {[%emt 0:03:33]} 22. axb3 {[%emt 0:00:22]} Ne6 {[%emt 0:01:00]} 23. O-O-O {[%emt 0:03:24]} b5 {[%emt 0:04:25]} 24. Bxe6+ {[%emt 0:04:05]} Kxe6 {[%emt 0:00:04]} 25. Ng1 {[%emt 0:00:44]} a5 {[%emt 0:06:09]} 26. Ne2 {[%emt 0:01:29]} a4 {[%emt 0:05:19]} 27. Nf4+ {[%emt 0:00:25]} Ke5 {[%emt 0:00:06]} 28. Kc2 {[%emt 0:02:42]} (28. b4 $142) 28... axb3+ {[%emt 0:02:40]} 29. Kxb3 {[%emt 0:00:24]} Ra4 {[%emt 0:01:32]} 30. Ra1 {[%emt 0:02:24]} Rha8 {[%emt 0:00:38]} 31. Rxa4 {[%emt 0:00:09]} Rxa4 {[%emt 0:00:12]} 32. Kc2 {[%emt 0:00:54]} Ra2 {[%emt 0:04:13]} 33. Kb1 {[%emt 0:00:34]} Ra4 {[%emt 0:00:28]} 34. b3 {[%emt 0:01:42]} Ra8 {[%emt 0:01:40]} 35. Kb2 {[%emt 0:01:10]} Ra7 {[%emt 0:01:40]} 36. Nd3+ {[%emt 0:06:05]} Kd6 {[%emt 0:00:31]} 37. Rh4 $16 {[%emt 0:01:20]} f5 {[%emt 0:01:21]} 38. Rh3 {[%emt 0:01:27]} Ra8 {[%emt 0:00:52]} 39. Nf4 {[%emt 0:02:28]} Ke5 {[%emt 0:00:44]} 40. Rg3 {[%emt 0:02:15]} Rg8 {[%emt 0:00:34]} 41. Rxg8 {[%emt 0:31:38]} Nxg8 {[%emt 0:30:01]} 42. Kc2 {[%emt 0:04:20]} Nf6 {[%emt 0:00:25]} 43. f3 {[%emt 0:00:53]} Nd7 {[%emt 0:03:11]} 44. Kd3 {[%emt 0:00:00]} Nf6 {[%emt 0:00:00]} 45. b4 {[%emt 0:00:00]} cxb4 {[%emt 0:00:00]} 46. cxb4 {[%emt 0:00:00]} Ne8 {[%emt 0:00:00]} 47. g3 {[%emt 0:00:00]} Nf6 {[%emt 0:00:00]} 48. Kc3 {[%emt 0:00:00]} Ne8 {[%emt 0:00:00]} 49. Nd3+ {[%emt 0:00:00]} Kd6 {[%emt 0:00:00]} 50. Kd4 {[%emt 0:00:00]} Nf6 {[%emt 0:00:00]} 51. Nf4 {[%emt 0:00:00]} h6 {[%emt 0:00:00]} 52. Kd3 {[%emt 0:00:00]} Kc6 {[%emt 0:00:00]} 53. Kc3 {[%emt 0:00:00]} Kd7 {[%emt 0:00:00]} 54. g4 {[%emt 0:05:16]} Kd6 {[%emt 0:00:02]} 55. Kd4 1/2-1/2

[Event "DVM U14 2021"]
[Site "Willingen"]
[Date "2022.08.16"]
[Round "7"]
[White "Braeutigam, Katerina"]
[Black "Krüger, Arthur"]
[Result "1/2-1/2"]
[ECO "C02"]
[WhiteElo "1781"]
[BlackElo "1996"]
[Annotator "NA RC"]
[PlyCount "76"]
[EventDate "2022.08.12"]
[EventType "team-tourn"]
[EventRounds "7"]
[EventCountry "GER"]
[SourceTitle "playchess.com"]
[Source "ChessBase"]
[SourceQuality "1"]
[TimeControl "40/5400+30:1800+30"]

{[%evp 14,76,29,32767,32767,32767,25,18,15,0,24,14,32767,32767,15,6,1,0,20,0,24,32767,-8,-18,5,-6,-6,-67,-10,32767,32767,-47,44,-40,-20,0,32767,32767,32767,32767,-3,-75,1,-14,32767,32767,31,25,32767,32767,36,46,32767,32767,32767,32767,32767,47,32767,0,0,0,59,32767,0]} 1. e4 {[%emt 0:00:02]} e6 {[%emt 0:00:02]} 2. d4 {[%emt 0:00:05]} d5 {[%emt 0:00:05]} 3. e5 {[%emt 0:00:03]} c5 {[%emt 0:00:04]} 4. c3 {[%emt 0:00:04]} Nc6 {[%emt 0:00:02]} 5. Nf3 {[%emt 0:00:06]} Bd7 {[%emt 0:00:04]} 6. a3 {[%emt 0:00:30]} Nge7 {[%emt 0:02:42]} 7. Bd3 {[%emt 0:00:25]} Qb6 {[%emt 0:04:31]} 8. Bc2 {[%emt 0:00:15]} cxd4 {[%emt 0:01:10]} 9. cxd4 {[%emt 0:00:17]} Nf5 {[%emt 0:03:56]} 10. Bxf5 {[%emt 0:00:28]} exf5 {[%emt 0:00:19]} 11. O-O {[%emt 0:00:15]} Be7 {[%emt 0:02:42]} 12. Nc3 {[%emt 0:01:18]} Be6 {[%emt 0:00:47]} 13. b4 {[%emt 0:01:49]} h6 {[%emt 0:02:50]} 14. Be3 {[%emt 0:13:19]} g5 {[%emt 0:02:47]} 15. Na4 {[%emt 0:06:45]} Qd8 {[%emt 0:05:03]} 16. Nc5 {[%emt 0:08:33]} Bxc5 {[%emt 0:01:19]} 17. bxc5 {[%emt 0:02:11]} f4 {[%emt 0:04:53]} 18. Bc1 {[%emt 0:08:19]} Rg8 {[%emt 0:32:30]} 19. Ne1 {[%emt 0:12:31]} Bf5 {[%emt 0:07:54]} 20. Qd2 {[%emt 0:20:45]} (20. Bb2 $11) 20... h5 {[%emt 0:05:25]} (20... Qa5 $15 21. Ra2 Qxd2 22. Rxd2 b6) 21. f3 {[%emt 0:06:27]} Qd7 {[%emt 0:04:33]} 22. Ra2 {[%emt 0:03:33]} (22. Bb2 $11 {is more appropriate.}) 22... Kf8 {[%emt 0:03:56]} (22... b6 $15) 23. Nc2 {[%emt 0:04:04]} ({White should try} 23. h4 $11) 23... Rg6 {[%emt 0:02:12]} (23... h4 $1 $15) 24. Nb4 {[%emt 0:01:32]} Na5 {[%emt 0:01:46]} 25. Qc3 {[%emt 0:04:46]} Nc4 {[%emt 0:00:47]} 26. Rff2 {[%emt 0:01:50]} Kg7 {[%emt 0:00:56]} (26... h4 $17) 27. Nd3 {[%emt 0:02:04]} (27. h4 $1 $11 {remains equal.}) 27... Rh8 {[%emt 0:02:03]} (27... Bxd3 $17 28. Qxd3 h4) 28. h4 {[%emt 0:01:14]} Bxd3 {[%emt 0:02:55]} 29. Qxd3 {[%emt 0:00:10]} gxh4 {[%emt 0:00:42]} 30. Bxf4 {[%emt 0:00:12]} Rg8 {[%emt 0:00:46]} 31. Kh2 {[%emt 0:00:52]} Kh8 {[%emt 0:00:50]} 32. Rae2 {[%emt 0:00:58]} Qe6 {[%emt 0:01:00]} 33. Rc2 {[%emt 0:00:32]} b6 {[%emt 0:02:53]} 34. cxb6 {[%emt 0:00:01]} axb6 {[%emt 0:00:02]} 35. Ra2 {[%emt 0:00:42]} b5 $11 {[%emt 0:00:56]} 36. Rfe2 {[%emt 0:00:49]} ({White should play} 36. Rf1 $16) 36... Ra8 {[%emt 0:00:44]} 37. Rf2 {[%emt 0:00:22]} Rc8 {[%emt 0:01:42]} 38. Rfe2 {[%emt 0:00:32]} Ra8 $11 {[%emt 0:00:38]} 1/2-1/2

[Event "DVM U14 2021"]
[Site "Willingen"]
[Date "2022.08.16"]
[Round "7"]
[White "Bongardt, Livius"]
[Black "Eichhorn, Valentin"]
[Result "1/2-1/2"]
[ECO "B48"]
[WhiteElo "1756"]
[BlackElo "1506"]
[Annotator "NA RC"]
[PlyCount "54"]
[EventDate "2022.08.12"]
[EventType "team-tourn"]
[EventRounds "7"]
[EventCountry "GER"]
[SourceTitle "playchess.com"]
[Source "ChessBase"]
[SourceQuality "1"]
[TimeControl "40/5400+30:1800+30"]

1. e4 {[%emt 0:00:14]} c5 {[%emt 0:00:00]} 2. Nf3 {[%emt 0:00:22]} e6 {[%emt 0:00:00]} 3. d4 {[%emt 0:00:31]} cxd4 {[%emt 0:00:00]} 4. Nxd4 {[%emt 0:00:27]} Nc6 {[%emt 0:20:10]} 5. Nc3 {[%emt 0:00:32]} Qc7 {[%emt 0:08:20]} 6. a3 {[%emt 0:01:13]} a6 {[%emt 0:04:22]} 7. Be3 {[%emt 0:01:43]} Nf6 {[%emt 0:03:39]} 8. Nb3 {[%emt 0:02:02]} Be7 {[%emt 0:03:35]} 9. h3 {[%emt 0:02:26]} b5 {[%emt 0:03:14]} 10. Bd3 {[%emt 0:06:54]} O-O {[%emt 0:06:52]} 11. O-O {[%emt 0:02:05]} Bb7 {[%emt 0:08:47]} 12. f4 {[%emt 0:02:18]} Rfd8 {[%emt 0:19:21]} 13. Qf3 {[%emt 0:04:01]} d5 {[%emt 0:03:33]} 14. exd5 {[%emt 0:00:54]} Nxd5 {[%emt 0:00:48]} 15. Nxd5 {[%emt 0:00:58]} Rxd5 {[%emt 0:02:39]} 16. Be4 {[%emt 0:01:34]} Rdd8 {[%emt 0:00:53]} 17. Qf2 {[%emt 0:02:15]} Qc8 {[%emt 0:04:10]} 18. c3 {[%emt 0:02:09]} h6 {[%emt 0:06:00]} 19. Rad1 {[%emt 0:03:50]} Rxd1 {[%emt 0:00:04]} 20. Rxd1 {[%emt 0:00:48]} Na5 {[%emt 0:02:57]} 21. Bxb7 {[%emt 0:00:18]} Nxb7 {[%emt 0:00:41]} 22. Nd4 {[%emt 0:00:56]} Bc5 {[%emt 0:00:49]} 23. Qf3 {[%emt 0:02:25]} Qc7 {[%emt 0:00:32]} 24. f5 {[%emt 0:01:49]} exf5 {[%emt 0:00:31]} 25. Qxf5 {[%emt 0:00:46]} Re8 {[%emt 0:00:24]} 26. Bf4 {[%emt 0:05:48]} Bd6 {[%emt 0:00:34]} 27. Bxd6 {[%emt 0:01:01]} Nxd6 {[%emt 0:02:07]} 1/2-1/2

[Event "DVM U14 2021"]
[Site "Willingen"]
[Date "2022.08.16"]
[Round "7"]
[White "Englert, Luca"]
[Black "Schwan, Aaron"]
[Result "0-1"]
[ECO "B41"]
[WhiteElo "1741"]
[BlackElo "1672"]
[Annotator "NA RC"]
[PlyCount "114"]
[EventDate "2022.08.12"]
[EventType "team-tourn"]
[EventRounds "7"]
[EventCountry "GER"]
[SourceTitle "playchess.com"]
[Source "ChessBase"]
[SourceQuality "1"]
[TimeControl "40/5400+30:1800+30"]

1. e4 {[%emt 0:00:09]} c5 {[%emt 0:00:00]} 2. Nf3 {[%emt 0:00:05]} e6 {[%emt 0:00:00]} 3. d4 {[%emt 0:00:02]} cxd4 {[%emt 0:00:00]} 4. Nxd4 {[%emt 0:00:03]} a6 {[%emt 0:00:02]} 5. c4 {[%emt 0:00:06]} Qc7 {[%emt 0:00:27]} 6. Nc3 {[%emt 0:00:21]} Nf6 {[%emt 0:00:38]} 7. Nc2 {[%emt 0:13:01]} Be7 {[%emt 0:02:15]} 8. Be2 {[%emt 0:00:25]} O-O {[%emt 0:00:13]} 9. O-O {[%emt 0:01:34]} d6 {[%emt 0:02:08]} 10. Be3 {[%emt 0:02:57]} Nbd7 {[%emt 0:05:08]} 11. Qd2 {[%emt 0:02:49]} b6 {[%emt 0:00:19]} 12. f3 {[%emt 0:01:13]} Bb7 {[%emt 0:02:53]} 13. Bf2 {[%emt 0:11:39]} Rfd8 {[%emt 0:01:08]} 14. Ne3 {[%emt 0:00:49]} Rac8 {[%emt 0:07:36]} 15. Rfd1 {[%emt 0:02:47]} Qb8 {[%emt 0:03:22]} 16. Rab1 {[%emt 0:03:42]} Qa8 {[%emt 0:03:22]} 17. b4 {[%emt 0:04:49]} Ne5 {[%emt 0:05:07]} 18. Na4 {[%emt 0:10:12]} Nfd7 {[%emt 0:11:09]} 19. Qb2 {[%emt 0:11:33]} h5 {[%emt 0:15:24]} 20. c5 {[%emt 0:01:57]} dxc5 {[%emt 0:00:30]} 21. bxc5 {[%emt 0:02:41]} b5 {[%emt 0:00:53]} 22. Nb6 {[%emt 0:00:30]} Nxb6 {[%emt 0:04:02]} 23. cxb6 {[%emt 0:01:33]} Bf6 {[%emt 0:00:34]} 24. Qb3 {[%emt 0:03:25]} Nc6 {[%emt 0:08:59]} 25. a4 {[%emt 0:04:30]} Nd4 {[%emt 0:03:42]} 26. Qa2 {[%emt 0:05:09]} Rc2 {[%emt 0:09:05]} 27. Qxc2 {[%emt 0:00:08]} Nxc2 {[%emt 0:00:04]} 28. Nxc2 {[%emt 0:02:23]} bxa4 {[%emt 0:03:21]} 29. Rxd8+ {[%emt 0:01:02]} Qxd8 {[%emt 0:02:51]} 30. Kf1 {[%emt 0:06:01]} Qd2 {[%emt 0:04:12]} 31. Ne3 {[%emt 0:04:27]} a3 {[%emt 0:00:22]} 32. Nc4 {[%emt 0:00:23]} Qc3 {[%emt 0:02:00]} 33. Be1 {[%emt 0:00:53]} a2 {[%emt 0:00:04]} 34. Rd1 {[%emt 0:00:33]} a1=Q {[%emt 0:00:18]} 35. Bxc3 {[%emt 0:00:13]} Qxc3 {[%emt 0:02:03]} 36. Rd7 {[%emt 0:03:48]} Bd4 {[%emt 0:00:35]} 37. g3 {[%emt 0:00:24]} Bc6 {[%emt 0:00:50]} 38. Rc7 {[%emt 0:00:10]} Qc1+ {[%emt 0:00:09]} 39. Kg2 {[%emt 0:00:01]} Qg1+ {[%emt 0:00:07]} 40. Kh3 {[%emt 0:01:24]} Bxe4 {[%emt 0:02:14]} 41. fxe4 {[%emt 0:30:01]} Bxb6 {[%emt 0:30:51]} 42. Rc8+ {[%emt 0:00:02]} Kh7 {[%emt 0:00:35]} 43. Bxh5 {[%emt 0:00:44]} Qf1+ {[%emt 0:00:21]} 44. Kh4 {[%emt 0:00:00]} Bd8+ {[%emt 0:00:00]} 45. Rxd8 {[%emt 0:00:00]} Qf6+ {[%emt 0:00:00]} 46. Kg4 {[%emt 0:00:00]} Qxd8 {[%emt 0:00:00]} 47. Bxf7 {[%emt 0:00:00]} Qd1+ {[%emt 0:00:00]} 48. Kh4 {[%emt 0:00:00]} g5+ {[%emt 0:00:00]} 49. Kxg5 {[%emt 0:00:00]} Qc1+ {[%emt 0:00:00]} 50. Kf6 {[%emt 0:00:00]} Qxc4 {[%emt 0:00:00]} 51. Bxe6 {[%emt 0:00:00]} Qf1+ {[%emt 0:00:00]} 52. Bf5+ {[%emt 0:00:00]} Kg8 {[%emt 0:00:00]} 53. g4 {[%emt 0:00:00]} Qh3 {[%emt 0:00:00]} 54. g5 {[%emt 0:00:00]} Qxh2 {[%emt 0:00:00]} 55. e5 {[%emt 0:00:00]} Qh8+ {[%emt 0:00:00]} 56. Ke6 {[%emt 0:00:00]} Qg7 {[%emt 0:00:00]} 57. g6 {[%emt 0:00:00]} Kf8 {[%emt 0:00:00]} 0-1

[Event "DVM U14 2021"]
[Site "Willingen"]
[Date "2022.08.16"]
[Round "7"]
[White "Tomasjan, Samuel"]
[Black "Hoffmann, Kay"]
[Result "1/2-1/2"]
[ECO "B01"]
[WhiteElo "1741"]
[BlackElo "1653"]
[Annotator "NA RC"]
[PlyCount "62"]
[EventDate "2022.08.12"]
[EventType "team-tourn"]
[EventRounds "7"]
[EventCountry "GER"]
[SourceTitle "playchess.com"]
[Source "ChessBase"]
[SourceQuality "1"]
[TimeControl "40/5400+30:1800+30"]

1. e4 {[%emt 0:00:02]} d5 {[%emt 0:00:06]} 2. exd5 {[%emt 0:00:03]} Qxd5 {[%emt 0:00:17]} 3. Nc3 {[%emt 0:00:04]} Qd6 {[%emt 0:00:14]} 4. Bc4 {[%emt 0:00:21]} Nf6 {[%emt 0:00:28]} 5. d3 {[%emt 0:00:15]} a6 {[%emt 0:00:18]} 6. Nge2 {[%emt 0:01:17]} e6 {[%emt 0:01:02]} 7. Bf4 {[%emt 0:03:01]} Qd8 {[%emt 0:00:06]} 8. O-O {[%emt 0:01:35]} Bd6 {[%emt 0:00:41]} 9. Bg3 {[%emt 0:01:34]} O-O {[%emt 0:00:29]} 10. Re1 {[%emt 0:03:16]} b5 {[%emt 0:01:04]} 11. Bb3 {[%emt 0:00:16]} Bb7 {[%emt 0:01:07]} 12. Qd2 {[%emt 0:05:11]} Nbd7 {[%emt 0:03:55]} 13. Rad1 {[%emt 0:04:26]} Nc5 {[%emt 0:04:04]} 14. f3 {[%emt 0:03:15]} Nxb3 {[%emt 0:01:08]} 15. axb3 {[%emt 0:00:17]} Bxg3 {[%emt 0:00:41]} 16. Nxg3 {[%emt 0:00:28]} c5 {[%emt 0:01:08]} 17. Kh1 {[%emt 0:04:52]} Qc7 {[%emt 0:03:22]} 18. Qg5 {[%emt 0:14:57]} Rfe8 {[%emt 0:11:34]} 19. Nce4 {[%emt 0:07:28]} Bxe4 {[%emt 0:02:13]} 20. fxe4 {[%emt 0:06:14]} h6 {[%emt 0:02:06]} 21. Qd2 {[%emt 0:07:58]} Rad8 {[%emt 0:04:56]} 22. Rf1 {[%emt 0:02:19]} Qe5 {[%emt 0:07:26]} 23. c3 {[%emt 0:01:04]} c4 {[%emt 0:01:49]} 24. bxc4 {[%emt 0:04:40]} bxc4 {[%emt 0:01:40]} 25. Qe2 {[%emt 0:02:10]} cxd3 {[%emt 0:08:41]} 26. Rxd3 {[%emt 0:00:07]} Qg5 {[%emt 0:01:01]} 27. Rd4 {[%emt 0:03:20]} Ng4 {[%emt 0:01:59]} 28. Qxa6 {[%emt 0:07:28]} Qh4 {[%emt 0:02:54]} 29. h3 {[%emt 0:01:39]} Qxg3 {[%emt 0:03:12]} 30. hxg4 {[%emt 0:00:05]} Qxg4 {[%emt 0:02:54]} 31. Qd3 {[%emt 0:00:48]} Qh4+ {[%emt 0:01:37]} 1/2-1/2

[Event "DVM U14 2021"]
[Site "Willingen"]
[Date "2022.08.16"]
[Round "7"]
[White "Tietz, Bennit"]
[Black "Braeutigam, Alexander"]
[Result "0-1"]
[ECO "B55"]
[WhiteElo "1684"]
[BlackElo "1771"]
[Annotator "NA RC"]
[PlyCount "120"]
[EventDate "2022.08.12"]
[EventType "team-tourn"]
[EventRounds "7"]
[EventCountry "GER"]
[SourceTitle "playchess.com"]
[Source "ChessBase"]
[SourceQuality "1"]
[TimeControl "40/5400+30:1800+30"]

1. e4 {[%emt 0:00:06]} c5 {[%emt 0:00:00]} 2. Nf3 {[%emt 0:00:06]} d6 {[%emt 0:00:00]} 3. d4 {[%emt 0:00:05]} cxd4 {[%emt 0:00:00]} 4. Nxd4 {[%emt 0:00:04]} Nf6 {[%emt 0:00:00]} 5. f3 {[%emt 0:00:11]} e5 {[%emt 0:00:57]} 6. Bb5+ {[%emt 0:01:38]} Bd7 {[%emt 0:00:07]} 7. Bxd7+ {[%emt 0:00:33]} Qxd7 {[%emt 0:01:47]} 8. Nf5 {[%emt 0:01:14]} d5 {[%emt 0:01:29]} 9. Bg5 {[%emt 0:08:06]} dxe4 {[%emt 0:00:08]} 10. Bxf6 {[%emt 0:00:15]} Qxd1+ {[%emt 0:00:23]} 11. Kxd1 {[%emt 0:01:12]} gxf6 {[%emt 0:00:48]} 12. fxe4 {[%emt 0:00:39]} Nc6 {[%emt 0:03:22]} 13. Nc3 {[%emt 0:00:18]} O-O-O+ {[%emt 0:01:23]} 14. Nd5 {[%emt 0:04:08]} Ne7 {[%emt 0:00:42]} 15. Nfxe7+ {[%emt 0:00:10]} Bxe7 {[%emt 0:00:20]} 16. Ke2 {[%emt 0:02:47]} Rd7 {[%emt 0:01:31]} 17. Rhf1 {[%emt 0:00:32]} Rg8 {[%emt 0:07:52]} 18. g3 {[%emt 0:00:51]} Rg6 {[%emt 0:05:58]} 19. Rf5 {[%emt 0:01:20]} Bd8 {[%emt 0:12:23]} 20. Raf1 {[%emt 0:01:20]} Rd6 {[%emt 0:15:11]} 21. a4 {[%emt 0:00:28]} Kd7 {[%emt 0:04:14]} 22. R1f3 {[%emt 0:01:09]} Ke6 {[%emt 0:01:52]} 23. h4 {[%emt 0:02:02]} Rc6 {[%emt 0:06:35]} 24. c3 {[%emt 0:01:21]} Rc4 {[%emt 0:05:00]} 25. Kd3 {[%emt 0:01:45]} Rxa4 {[%emt 0:09:10]} 26. b4 {[%emt 0:01:07]} Ra1 {[%emt 0:02:34]} 27. Ne3 {[%emt 0:03:11]} b6 {[%emt 0:02:12]} 28. Rh5 {[%emt 0:01:58]} h6 {[%emt 0:01:06]} 29. Nf5 {[%emt 0:01:00]} a5 {[%emt 0:08:08]} 30. Rxh6 {[%emt 0:00:18]} Rxh6 {[%emt 0:00:26]} 31. Nxh6 {[%emt 0:01:03]} axb4 {[%emt 0:02:22]} 32. cxb4 {[%emt 0:03:06]} Be7 {[%emt 0:05:00]} 33. Kc4 {[%emt 0:00:16]} Re1 {[%emt 0:01:19]} 34. Kb5 {[%emt 0:00:17]} Rxe4 {[%emt 0:01:05]} 35. Kxb6 {[%emt 0:01:23]} Rxb4+ {[%emt 0:00:02]} 36. Kc6 {[%emt 0:00:59]} Rc4+ {[%emt 0:00:23]} 37. Kb5 {[%emt 0:00:30]} Rc5+ {[%emt 0:01:55]} 38. Kb6 {[%emt 0:00:57]} e4 {[%emt 0:00:46]} 39. Rf4 {[%emt 0:01:12]} f5 {[%emt 0:00:26]} 40. Ng8 {[%emt 0:00:17]} Re5 {[%emt 0:00:00]} 41. Nxe7 {[%emt 0:00:13]} Kxe7 {[%emt 0:16:02]} 42. Kc6 {[%emt 0:00:39]} e3 {[%emt 0:00:01]} 43. Rf1 {[%emt 0:00:20]} e2 {[%emt 0:00:02]} 44. Re1 {[%emt 0:00:29]} Kf8 {[%emt 0:02:28]} 45. Kd6 {[%emt 0:00:05]} f6 {[%emt 0:02:28]} 46. Kd7 {[%emt 0:00:09]} Kg7 {[%emt 0:01:18]} 47. Kd6 {[%emt 0:00:21]} Kh6 {[%emt 0:01:09]} 48. Kd7 {[%emt 0:00:13]} Kh5 {[%emt 0:00:10]} 49. Kd6 {[%emt 0:00:08]} Kg4 {[%emt 0:00:02]} 50. Kd7 {[%emt 0:00:53]} Re4 {[%emt 0:01:04]} 51. Kd8 {[%emt 0:00:18]} Kxg3 {[%emt 0:00:02]} 52. h5 {[%emt 0:00:13]} Kf2 {[%emt 0:00:43]} 53. Rh1 {[%emt 0:00:09]} e1=Q {[%emt 0:00:38]} 54. Rh2+ {[%emt 0:00:21]} Kg3 {[%emt 0:00:40]} 55. Ra2 {[%emt 0:00:21]} Qd1+ {[%emt 0:00:09]} 56. Kc7 {[%emt 0:00:06]} Rc4+ {[%emt 0:00:16]} 57. Kb6 {[%emt 0:00:07]} Qb3+ {[%emt 0:00:07]} 58. Ka5 {[%emt 0:00:10]} Qxa2+ {[%emt 0:00:04]} 59. Kb5 {[%emt 0:00:10]} Qb3+ {[%emt 0:00:09]} 60. Ka5 {[%emt 0:00:04]} Ra4# 0-1